[Event "1st Festival ChessInLyon-GM 2024"]
[Site "Lyon"]
[Date "2024.04.26"]
[Round "7.2"]
[White "Gatineau, Yovann"]
[Black "Tahay, Alexis"]
[Result "1/2-1/2"]
[ECO "D38"]
[WhiteElo "2408"]
[BlackElo "2382"]
[Annotator "TA"]
[PlyCount "144"]
[EventDate "2024.04.23"]
[EventType "tourn"]
[EventCountry "FRA"]
[SourceTitle "playchess.com"]
[Source "ChessBase"]
[SourceQuality "1"]
[TimeControl "40/5400+30:1800+30"]

{[%evp 58,144,86,49,57,62,57,48,58,54,55,-14,0,-8,0,0,0,0,0,0,0,-8,0,0,0,0,0,0,0,0,8,8,8,8,8,16,26,8,8,8,8,8,8,8,8,8,8,8,8,8,8,8,8,8,8,8,8,8,8,8,8,8,8,0,0,0,135,0,0,0,0,0,0,0,0,0,0,0,0,0,0,-8,-8,-8,-8,-8,-8,-8,-8]} 1. d4 {[%emt 0:03:03]} Nf6 {[%emt 0:01:22]} 2. c4 {[%emt 0:00:14]} e6 {[%emt 0:00:06]} 3. Nf3 {[%emt 0:00:06]} d5 {[%emt 0:00:16]} 4. Nc3 {[%emt 0:00:05]} Bb4 {[%emt 0:00:13]} 5. Bg5 {[%emt 0:00:51]} h6 {[%emt 0:01:58]} 6. Bxf6 {[%emt 0:00:07]} Qxf6 {[%emt 0:00:04]} 7. Qa4+ {[%emt 0:00:05]} Nc6 {[%emt 0:00:04]} 8. e3 {[%emt 0:00:04]} O-O {[%emt 0:00:25] D38: Queen's Gambit Declined: Ragozin Defence (4 Nf3 Bb4).} 9. Be2 $1 {[%emt 0:00:06] The main line 9.Be2 scores better than 9.Rc1.} dxc4 {[%emt 0:01:23]} 10. O-O {[%emt 0:01:30]} Bd7 {[%emt 0:04:22]} 11. Bxc4 {[%emt 0:00:47]} Bxc3 {[%emt 0:00:07]} 12. bxc3 {[%emt 0:00:06]} Rfd8 {[%emt 0:00:48]} 13. Be2 {[%emt 0:00:58]} Be8 {[%emt 0:04:28]} 14. Qa3 {[%emt 0:05:11]} Qe7 {[%emt 0:02:23]} 15. Qb2 {[%emt 0:00:06]} Na5 {[%emt 0:01:06]} 16. Qb4 {[%emt 0:00:24]} Qxb4 {[%emt 0:00:09]} 17. cxb4 {[%emt 0:00:06]} Nc6 {[%emt 0:00:07]} 18. Rab1 {[%emt 0:09:00]} Ne7 $146 {[%emt 0:09:30]} ({Predecessor:} 18... a6 19. Rfc1 Rdc8 20. Nd2 Ne7 21. Kf1 Bb5 22. Nb3 c6 23. g3 Nf5 24. Nc5 Nd6 {1-0 Le,Q (2709)-Esipenko,A (2714) Airthings Masters Prelim rapid 2022 (11)}) 19. Rfc1 {[%emt 0:01:10]} c6 {[%emt 0:00:38]} 20. Ne5 {[%emt 0:02:13]} Nf5 {[%emt 0:05:57]} 21. Rc5 {[%emt 0:11:01]} f6 {[%emt 0:12:03]} 22. Nd3 {[%emt 0:02:25]} Nd6 {[%emt 0:01:28]} 23. f3 {[%emt 0:03:52]} Nf7 {[%emt 0:02:49]} 24. Kf2 {[%emt 0:06:16]} g5 {[%emt 0:03:28]} 25. Rc3 {[%emt 0:05:52]} Nd6 {[%emt 0:03:27]} 26. Nc5 {[%emt 0:02:29]} Bf7 {[%emt 0:02:00]} 27. a4 {[%emt 0:02:14]} Kf8 {[%emt 0:06:16]} 28. e4 {[%emt 0:08:56]} Rab8 {[%emt 0:03:53]} 29. h4 {[%emt 0:05:45]} g4 {[%emt 0:09:48]} 30. Ke3 {[%emt 0:12:09]} gxf3 {[%emt 0:00:05]} 31. gxf3 {[%emt 0:03:17]} (31. Kxf3 b6 32. Na6 Rbc8 $15) 31... Ke7 {[%emt 0:00:23]} 32. Bd3 {[%emt 0:05:27]} e5 {[%emt 0:03:47]} 33. dxe5 {[%emt 0:00:32]} fxe5 {[%emt 0:00:01]} 34. f4 {[%emt 0:01:19]} (34. Rbc1 $14) 34... exf4+ $11 {[%emt 0:00:05]} 35. Kxf4 {[%emt 0:00:02]} Rf8 {[%emt 0:00:31]} 36. Ke3 $1 {[%emt 0:01:11]} Bh5 {[%emt 0:01:35]} 37. Be2 {[%emt 0:05:31]} Bxe2 {[%emt 0:00:09]} 38. Kxe2 {[%emt 0:00:01]} Rf4 {[%emt 0:03:15]} 39. Rf3 {[%emt 0:02:13]} Rbf8 {[%emt 0:03:53]} 40. Rbf1 {[%emt 0:00:58]} Rxf3 {[%emt 0:00:10]} 41. Rxf3 {[%emt 0:30:02]} Rxf3 {[%emt 0:36:25]} 42. Kxf3 {[%emt 0:00:02]} b6 {[%emt 0:00:01]} 43. Nb3 {[%emt 0:03:06]} Kf6 {[%emt 0:04:03]} 44. Nd4 {[%emt 0:00:00]} c5 {[%emt 0:00:00]} 45. Nc6 {[%emt 0:00:00]} Nc4 {[%emt 0:00:00]} 46. bxc5 {[%emt 0:00:00]} (46. Nxa7 cxb4 47. Ke2 b3 $19) 46... a5 {[%emt 0:00:00]} 47. Nd4 {[%emt 0:00:00]} bxc5 {[%emt 0:00:00]} 48. Nb3 {[%emt 0:00:00]} Ne5+ {[%emt 0:00:00]} 49. Ke3 {[%emt 0:00:00]} Nd7 {[%emt 0:00:00]} 50. Kd3 {[%emt 0:00:00]} Nb6 {[%emt 0:00:00]} 51. Nxc5 {[%emt 0:00:00]} Ke5 {[%emt 0:00:00]} 52. h5 {[%emt 0:00:00]} Kf4 {[%emt 0:01:06]} 53. Kd4 {[%emt 0:00:00]} Kg5 {[%emt 0:00:27]} 54. Ke5 {[%emt 0:02:57]} Kxh5 {[%emt 0:04:45]} 55. Kf5 {[%emt 0:00:03]} Kh4 {[%emt 0:00:49]} 56. e5 {[%emt 0:00:23]} h5 {[%emt 0:00:20]} 57. e6 {[%emt 0:00:43]} Nd5 {[%emt 0:00:40]} 58. Ne4 {[%emt 0:03:02]} (58. Ke5 $5 Ne7 $8 59. Ne4 $11) 58... Kh3 {[%emt 0:00:59]} 59. Nc3 {[%emt 0:01:26]} Ne7+ {[%emt 0:02:12]} 60. Kg5 {[%emt 0:00:04]} (60. Kf6 $5 Nc8 $8 61. Kg5 $11) 60... h4 {[%emt 0:00:11]} 61. Ne2 {[%emt 0:00:42]} Nc6 {[%emt 0:00:18] [#]} (61... Kg2 $11 {keeps the balance.}) 62. Nf4+ {[%emt 0:00:35]} ({Only move:} 62. Kf6 $1 $16 {[%cal Oe2d4] White threatens Nd4! and mate.} Kg2 (62... Kg4 $2 63. Nd4 $18) 63. Nd4) 62... Kg3 $11 {[%emt 0:00:03]} 63. Nh5+ {[%emt 0:00:07]} Kf3 {[%emt 0:01:52]} 64. Kxh4 {[%emt 0:00:09]} Ke4 {[%emt 0:00:01]} 65. Kg5 {[%emt 0:00:41]} Ke5 {[%emt 0:00:06]} 66. Ng7 {[%emt 0:00:32]} Ne7 {[%emt 0:00:01]} 67. Kh6 {[%emt 0:01:10]} Kf6 {[%emt 0:00:02]} 68. Kh7 {[%emt 0:00:13]} Nc6 {[%emt 0:00:14]} 69. Kh6 {[%emt 0:00:40]} Nd8 {[%emt 0:00:03]} 70. e7 {[%emt 0:00:29]} Kxe7 {[%emt 0:00:01]} 71. Nf5+ {[%emt 0:00:04]} Ke6 {[%emt 0:00:11]} 72. Nd4+ {[%emt 0:00:03]} Kd5 {[%emt 0:00:07]} 1/2-1/2

[Event "1st Festival ChessInLyon-GM 2024"]
[Site "Lyon"]
[Date "2024.04.26"]
[Round "7.3"]
[White "Shyaamnikhil P"]
[Black "Crut, Aurelien"]
[Result "1-0"]
[ECO "C17"]
[WhiteElo "2390"]
[BlackElo "2312"]
[Annotator "TA"]
[PlyCount "161"]
[EventDate "2024.04.23"]
[EventType "tourn"]
[EventCountry "FRA"]
[SourceTitle "playchess.com"]
[Source "ChessBase"]
[SourceQuality "1"]
[TimeControl "40/5400+30:1800+30"]

{[%evp 86,161,120,127,120,110,127,99,121,124,139,125,162,124,131,109,141,114,133,0,132,125,130,126,127,118,106,0,127,113,228,202,285,262,307,296,306,290,304,296,513,514,552,381,374,367,545,465,632,625,572,525,681,689,530,514,737,723,799,784,762,743,1328,531,1134,1220,5135,4906,29978,10200,8765,5181,1427,1575,29965,6091,1118,1068]} 1. e4 {[%emt 0:00:12]} e6 {[%emt 0:00:10]} 2. d4 {[%emt 0:00:22]} d5 {[%emt 0:00:06]} 3. Nc3 {[%emt 0:00:13]} Bb4 {[%emt 0:00:17]} 4. e5 {[%emt 0:02:51]} c5 {[%emt 0:00:37]} 5. Bd2 {[%emt 0:00:12]} Ne7 {[%emt 0:00:30]} 6. a3 {[%emt 0:00:52]} Bxc3 {[%emt 0:01:56]} 7. Bxc3 {[%emt 0:00:07]} b6 {[%emt 0:03:04]} 8. Bb5+ {[%emt 0:00:31] 8.Bb5+ has lost popularity.} Bd7 {[%emt 0:00:50] C17: French: 3 Nc3 Bb4 4 e5 c5 sidelines.} 9. Be2 {[%emt 0:02:21]} Nbc6 {[%emt 0:04:16]} 10. Nf3 {[%emt 0:00:20]} Qc7 {[%emt 0:03:45]} 11. O-O {[%emt 0:00:41]} O-O {[%emt 0:06:18]} 12. Re1 {[%emt 0:05:22]} Ng6 $146 {[%emt 0:19:28]} ({Predecessor:} 12... a5 13. Bd3 h6 14. Bd2 c4 15. Be2 b5 16. c3 Ng6 17. h4 Rfb8 18. h5 Nge7 {1-0 Neuburger,I (2050)-Mihai,E (2206) BdF-Smaragd 07 email 2016}) 13. Bd3 {[%emt 0:09:52]} c4 {[%emt 0:17:21]} 14. Bf1 {[%emt 0:06:31]} f6 {[%emt 0:04:46]} 15. exf6 {[%emt 0:08:31]} Rxf6 {[%emt 0:01:49]} 16. g3 {[%emt 0:00:11]} Raf8 {[%emt 0:02:17]} 17. Bg2 {[%emt 0:00:20]} h6 {[%emt 0:02:50]} 18. Rf1 {[%emt 0:10:33]} b5 {[%emt 0:02:32]} 19. Bb4 {[%emt 0:01:49]} Nxb4 {[%emt 0:04:27]} 20. axb4 {[%emt 0:00:11]} Bc8 {[%emt 0:03:52]} 21. Ra3 {[%emt 0:02:06]} a6 {[%emt 0:02:54]} 22. Qd2 {[%emt 0:01:37]} Ne7 {[%emt 0:02:40]} 23. Ne5 {[%emt 0:01:51]} Nc6 {[%emt 0:00:20]} 24. Ng4 {[%emt 0:06:29]} R6f7 {[%emt 0:00:52]} 25. f4 {[%emt 0:00:34]} Qd6 {[%emt 0:03:59]} 26. c3 {[%emt 0:01:19]} Ra7 {[%emt 0:01:02]} 27. Rfa1 {[%emt 0:00:55]} Kh8 {[%emt 0:02:16]} 28. Qe3 {[%emt 0:01:13]} Kg8 {[%emt 0:00:32]} 29. Bf3 {[%emt 0:00:35]} Raf7 {[%emt 0:02:06]} 30. Re1 {[%emt 0:03:10]} Ra7 {[%emt 0:00:47]} 31. Rea1 {[%emt 0:01:05]} Raf7 {[%emt 0:00:28]} 32. Be2 {[%emt 0:00:59]} Rc7 {[%emt 0:00:59]} 33. Bd1 {[%emt 0:01:08]} Ra7 {[%emt 0:00:40]} 34. Bc2 {[%emt 0:00:35]} Qc7 {[%emt 0:01:24]} 35. Bb1 {[%emt 0:03:16]} Qf7 {[%emt 0:01:02]} 36. Qe2 {[%emt 0:02:19]} Rc7 {[%emt 0:02:29]} 37. Bc2 {[%emt 0:04:01]} Ra7 {[%emt 0:00:21]} 38. Rf1 {[%emt 0:01:34]} a5 {[%emt 0:01:55]} 39. bxa5 {[%emt 0:00:48]} b4 {[%emt 0:00:23]} 40. Raa1 {[%emt 0:00:56]} b3 {[%emt 0:00:41]} 41. Bb1 {[%emt 0:30:07]} Qc7 {[%emt 0:11:57]} 42. a6 {[%emt 0:00:00]} Qb6 {[%emt 0:01:32]} 43. h4 {[%emt 0:00:00]} Rxa6 {[%emt 0:02:42]} 44. Rxa6 {[%emt 0:00:00]} Qxa6 {[%emt 0:00:04]} 45. h5 {[%emt 0:00:00]} Qa7 {[%emt 0:01:31]} 46. Kh2 {[%emt 0:00:00]} Qc7 {[%emt 0:03:11]} 47. Re1 {[%emt 0:00:00]} Qf7 {[%emt 0:01:42]} 48. Bg6 {[%emt 0:00:00]} Qd7 {[%emt 0:01:19]} 49. Qg2 {[%emt 0:00:00]} Qd6 {[%emt 0:00:31]} 50. Ra1 {[%emt 0:00:00]} Bd7 {[%emt 0:00:36]} 51. Ra6 {[%emt 0:00:00]} Bc8 {[%emt 0:03:34]} 52. Ra1 {[%emt 0:00:00]} Bd7 {[%emt 0:00:04]} 53. Qg1 {[%emt 0:00:01]} Qc7 {[%emt 0:01:50]} 54. Qe1 {[%emt 0:06:23]} Qb7 {[%emt 0:02:25]} 55. Rd1 {[%emt 0:08:18]} Qc7 {[%emt 0:00:13]} 56. Ra1 {[%emt 0:01:39]} Qb7 $1 {[%emt 0:00:09]} 57. Qe3 {[%emt 0:01:26]} Bc8 {[%emt 0:00:50]} (57... Ne7 $16 {was necessary.} 58. Ne5 Be8) 58. Ne5 $18 {[%emt 0:04:38]} Bd7 {[%emt 0:01:10]} (58... Ne7 $142 59. g4 Nc6) 59. Nxc6 $18 {[%emt 0:02:09]} Qxc6 {[%emt 0:00:03]} 60. Qe5 {[%emt 0:00:08]} Qb6 {[%emt 0:01:55]} 61. g4 {[%emt 0:02:17]} Qb8 {[%emt 0:00:46]} 62. Kg3 {[%emt 0:00:40]} Qxe5 $2 {[%emt 0:00:53]} (62... Qb6 63. g5 Qb8 64. gxh6 gxh6) 63. dxe5 $18 {[%emt 0:00:05]} Be8 {[%emt 0:01:47]} 64. Bb1 {[%emt 0:01:12]} Bc6 {[%emt 0:02:45]} 65. Ra6 {[%emt 0:00:08]} Bd7 {[%emt 0:00:00]} (65... Rc8 $142 66. f5 (66. Bg6 d4 $18) 66... Kf8 67. fxe6 Rc7) 66. Ra7 {[%emt 0:00:29]} Bc6 {[%emt 0:00:00]} 67. Rc7 {[%emt 0:00:39]} Bb5 {[%emt 0:00:00]} 68. Kf3 {[%emt 0:02:11]} Rf7 {[%emt 0:00:10]} 69. Rc8+ {[%emt 0:00:20]} Rf8 {[%emt 0:00:22]} 70. Rc5 {[%emt 0:01:06]} Bd7 {[%emt 0:00:20]} 71. Rc7 {[%emt 0:00:07]} Rd8 {[%emt 0:00:51]} 72. Ke3 {[%emt 0:01:06]} Kf8 {[%emt 0:00:27]} 73. Bg6 {[%emt 0:01:06]} Be8 {[%emt 0:00:25]} 74. Ra7 {[%emt 0:00:29]} (74. Kd4 $142 Rb8 75. f5) 74... Rb8 {[%emt 0:01:36]} 75. f5 {[%emt 0:00:25]} exf5 {[%emt 0:00:30]} 76. gxf5 {[%emt 0:00:06]} Bc6 {[%emt 0:00:29]} 77. Rc7 {[%emt 0:00:20]} (77. Rf7+ $142 Kg8 78. Rc7 d4+ 79. Kxd4 (79. cxd4 c3 $18) 79... Be8 80. e6 (80. Rxc4 Rd8+ 81. Ke4 Ra8 $18) (80. Kxc4 Kh8 $18) 80... Kh8 81. e7 (81. Rxc4 Ra8 $18) (81. Kxc4 Kg8 $18) 81... Bb5 82. Rc5) 77... Be8 {[%emt 0:00:33]} 78. f6 {[%emt 0:00:53]} gxf6 {[%emt 0:00:09]} 79. exf6 {[%emt 0:00:06]} Rd8 {[%emt 0:01:00]} 80. Rh7 {[%emt 0:00:12]} d4+ {[%emt 0:00:27]} 81. cxd4 {[%emt 0:00:11]} 1-0

[Event "1st Festival ChessInLyon-GM 2024"]
[Site "Lyon"]
[Date "2024.04.26"]
[Round "7.4"]
[White "Fedorchuk, Sergey A."]
[Black "Boyer, Mahel"]
[Result "0-1"]
[ECO "C07"]
[WhiteElo "2557"]
[BlackElo "2432"]
[Annotator "TA"]
[PlyCount "68"]
[EventDate "2024.04.23"]
[EventType "tourn"]
[EventCountry "FRA"]
[SourceTitle "playchess.com"]
[Source "ChessBase"]
[SourceQuality "1"]
[TimeControl "40/5400+30:1800+30"]

{[%evp 9,68,10,18,16,20,24,38,29,29,34,40,8,52,4,8,0,1,1,7,-79,-73,-94,-66,-63,-91,-96,-83,-84,-62,-88,-99,-87,-77,-213,-208,-322,-313,-501,-496,-793,-778,-1797,-1693,-1744,-1708,-1552,-1269,-29987,-29988,-29988,-29989,-29989,-29990,-29990,-29991,-29991,-29976,-6207,-532,-1141,-1139]} 1. e4 {[%emt 0:04:32]} e6 {[%emt 0:00:03]} 2. d4 {[%emt 0:00:46]} d5 {[%emt 0:00:03]} 3. Nd2 {[%emt 0:01:03]} c5 {[%emt 0:00:05][%cal Bc7c5,Bc5c4][%mdl 32]} 4. Ngf3 {[%emt 0:02:19]} a6 {[%emt 0:00:05]} 5. Bd3 {[%emt 0:05:46]} c4 {[%emt 0:00:11]} 6. Be2 {[%emt 0:01:30]} b5 {[%emt 0:00:02]} 7. c3 {[%emt 0:03:19]} dxe4 {[%emt 0:05:43]} 8. Nxe4 {[%emt 0:06:31] Hoping for Ne5. White is slightly better.} Bb7 {[%emt 0:00:09]} 9. Qc2 {[%emt 0:02:57]} Nd7 {[%emt 0:04:47]} 10. Bf4 {[%emt 0:06:30] Repels Qc7} Qb6 {[%emt 0:06:16]} 11. Ne5 {[%emt 0:18:54]} (11. b3 $14) 11... Ngf6 $11 {[%emt 0:04:40]} 12. Nxd7 {[%emt 0:03:12]} Nxd7 {[%emt 0:00:33]} 13. Bf3 {[%emt 0:01:59]} Be7 {[%emt 0:01:36] [#]} 14. Bd6 {[%emt 0:07:04]} f5 $17 {[%emt 0:17:48][%cal Of5e4]} (14... Bxd6 15. Nxd6+ Qxd6 16. Bxb7 $11) 15. Bxe7 {[%emt 0:00:38] Bc5 would now be deadly.} fxe4 {[%emt 0:00:18]} 16. Bc5 $1 {[%emt 0:00:06]} Nxc5 {[%emt 0:00:12]} 17. dxc5 {[%emt 0:00:04]} Qc6 {[%emt 0:02:00]} 18. Bg4 {[%emt 0:00:50]} O-O {[%emt 0:00:50][%cal Oa8d8]} 19. Qe2 {[%emt 0:13:57]} Rad8 {[%emt 0:06:04][%cal Od8d3]} 20. O-O {[%emt 0:01:31]} Rd3 {[%emt 0:00:13][%cal Of8f6] Black is more active.} 21. a4 {[%emt 0:01:45] Loses the game.} bxa4 $19 {[%emt 0:18:24][%cal Of8f6]} (21... Qxc5 22. Bxe6+ Kh8 23. axb5 axb5 24. Bg4) 22. Rfe1 {[%emt 0:01:00]} (22. Rad1 $142) 22... Rf6 {[%emt 0:01:48]} ({But not} 22... Qxc5 23. Bxe6+ Kh8 24. Bh3 $19 (24. Rxa4 $2 {is the wrong capture.} Qc6 $19)) 23. h3 $2 {[%emt 0:06:30]} (23. Rad1 {might work better.}) 23... e3 {[%emt 0:05:50]} 24. fxe3 {[%emt 0:04:23] [#]} (24. f3 $142 Qxc5 25. Rxa4) 24... Rxe3 $3 {[%emt 0:00:09][%mdl 512]} 25. Qc2 {[%emt 0:01:46]} (25. Qd2 Rg3) 25... Rg3 {[%emt 0:03:24]} 26. Re2 {[%emt 0:00:17]} Qxc5+ {[%emt 0:00:57]} 27. Kh2 {[%emt 0:00:07] [#]} Rxg4 $1 {[%emt 0:00:31]} 28. hxg4 {[%emt 0:00:30]} (28. Rd1 Rxg2+) 28... Rh6+ {[%emt 0:00:07]} 29. Kg3 {[%emt 0:00:03]} Qd6+ {[%emt 0:00:27]} 30. Kf2 {[%emt 0:00:09]} Qf4+ {[%emt 0:00:12]} 31. Kg1 {[%emt 0:00:10]} Qh2+ {[%emt 0:00:04]} 32. Kf1 {[%emt 0:01:26]} Rf6+ {[%emt 0:01:34]} 33. Ke1 {[%emt 0:00:26]} Qg1+ {[%emt 0:00:07]} (33... Bxg2 $142 34. Qd1 Rf1+ 35. Kd2 Qf4+ (35... Rxd1+ $2 36. Rxd1 Qf4+ 37. Kc2 $19) 36. Re3 Rf2+ (36... Rxd1+ $2 37. Rxd1 Be4 38. Ra1 $19) 37. Qe2 Rxe2+ 38. Kxe2 Qh2 (38... Qxg4+ $2 39. Kd2 $19)) 34. Kd2 {[%emt 0:00:06]} Qxa1 {[%emt 0:00:08] Weighted Error Value: White=0.97/Black=0.15 (very precise) .  Mistake:       	White=6     	---        Inaccurate:     	White=3     	Black=1      OK:         	White=5     	Black=8      Best:        	---       	Black=6      Strong:       	White=1     	---        Brilliant:      	---       	Black=1} 0-1

[Event "1st Festival ChessInLyon-GM 2024"]
[Site "Lyon"]
[Date "2024.04.26"]
[Round "7.5"]
[White "Pourramezanali, Amirreza"]
[Black "Droin, Augustin"]
[Result "1-0"]
[ECO "E14"]
[WhiteElo "2502"]
[BlackElo "2478"]
[Annotator "TA"]
[PlyCount "139"]
[EventDate "2024.04.23"]
[EventType "tourn"]
[EventCountry "FRA"]
[SourceTitle "playchess.com"]
[Source "ChessBase"]
[SourceQuality "1"]
[TimeControl "40/5400+30:1800+30"]

{[%evp 53,139,50,41,46,69,65,69,14,48,39,54,42,45,34,25,0,0,0,0,0,7,0,0,0,11,13,18,0,0,0,0,0,8,5,13,7,15,0,68,59,72,64,67,3,4,2,8,0,0,0,49,49,61,60,163,79,104,60,60,60,68,68,12850,29938,29954,29956,7010,5066,29970,29971,29970,29972,29973,29974,29977,29978,29978,29979,29979,29978,29977,29973,29975,29976,29975,29975,29984,29985]} 1. d4 {[%emt 0:00:03]} d5 {[%emt 0:00:30]} 2. c4 {[%emt 0:00:10]} e6 {[%emt 0:00:07]} 3. Nf3 {[%emt 0:00:06]} Nf6 {[%emt 0:00:05]} 4. Nc3 {[%emt 0:00:19]} c6 {[%emt 0:00:14]} 5. e3 {[%emt 0:00:07]} Nbd7 {[%emt 0:00:09]} 6. Be2 {[%emt 0:00:06]} Bd6 {[%emt 0:00:34]} 7. O-O {[%emt 0:00:16]} O-O {[%emt 0:00:04]} 8. b3 {[%emt 0:00:10]} b6 {[%emt 0:00:03]} 9. Bb2 {[%emt 0:00:05]} Bb7 {[%emt 0:00:05]} 10. Bd3 {[%emt 0:00:18]} c5 {[%emt 0:07:39]} 11. cxd5 {[%emt 0:00:25]} exd5 {[%emt 0:00:59]} 12. Nb5 {[%emt 0:01:16] E14: Queen's Indian: Classical Variation (4 e3).} Be7 {[%emt 0:06:17]} 13. Rc1 {[%emt 0:01:35]} a6 {[%emt 0:01:10]} 14. Nc3 {[%emt 0:00:02]} Re8 {[%emt 0:02:45]} 15. Re1 $146 {[%emt 0:00:27]} ({Predecessor:} 15. Bf5 Qc7 16. dxc5 bxc5 17. b4 c4 18. a3 Rad8 19. h3 Nf8 20. Re1 Ne6 21. Ne2 Bd6 22. Bxf6 gxf6 23. Bb1 {1-0 Mekhitarian,K (2537)-Danielyan,V (2346) Titled Tuesday intern op 25th Apr Early blitz 2023 (4)}) 15... Rc8 {[%emt 0:03:08]} 16. Qe2 {[%emt 0:07:48]} b5 {[%emt 0:00:17]} 17. dxc5 {[%emt 0:00:12]} Bxc5 {[%emt 0:00:03]} 18. Nb1 {[%emt 0:08:48]} Ne4 {[%emt 0:03:47]} 19. Bd4 {[%emt 0:02:25]} Bxd4 {[%emt 0:00:24]} 20. Nxd4 {[%emt 0:02:02]} Ne5 {[%emt 0:00:19]} 21. Rxc8 {[%emt 0:13:06]} Bxc8 {[%emt 0:10:09]} 22. f3 {[%emt 0:02:39]} Nc5 {[%emt 0:08:21]} 23. Bc2 {[%emt 0:59:35]} Qb6 {[%emt 0:02:36]} 24. Nc3 {[%emt 0:00:00]} Bb7 {[%emt 0:01:36]} 25. Qd2 {[%emt 0:00:00]} Ne6 {[%emt 0:10:04]} 26. Nce2 {[%emt 0:00:00]} Nc6 {[%emt 0:00:15]} 27. Nxc6 {[%emt 0:00:00]} Bxc6 {[%emt 0:00:03]} 28. Bf5 {[%emt 0:00:00]} b4 {[%emt 0:01:15]} 29. Bxe6 {[%emt 0:00:00]} fxe6 {[%emt 0:00:11]} 30. Nd4 {[%emt 0:00:00]} ({White should try} 30. Qd4 $14 Qb8 31. Rc1) 30... Bb7 {[%emt 0:03:44]} 31. f4 $1 {[%emt 0:00:00]} e5 {[%emt 0:00:06]} 32. fxe5 {[%emt 0:00:00]} Rxe5 {[%emt 0:00:03]} 33. Rf1 {[%emt 0:00:00]} Re8 {[%emt 0:04:29]} 34. Rf4 {[%emt 0:00:00]} (34. Qf2 {with more complications.} Qc7 35. Qf5 Qe7 36. Rf3) 34... a5 {[%emt 0:03:11]} 35. Nf5 {[%emt 0:00:00]} Qf6 {[%emt 0:01:11]} 36. h3 {[%emt 0:00:00]} Qa1+ {[%emt 0:06:38]} 37. Kf2 {[%emt 0:00:00]} Qc3 {[%emt 0:02:01]} (37... h6 {feels hotter.} 38. Nd6 Qc3 39. Qd4 Qxd4 40. Rxd4 Rf8+) 38. Qd4 {[%emt 0:00:19]} Qxd4 {[%emt 0:01:39]} 39. Nxd4 {[%emt 0:00:25]} Rc8 {[%emt 0:02:29]} 40. Ke2 {[%emt 0:01:12]} Rc1 {[%emt 0:02:20]} 41. Rf2 {[%emt 0:34:35]} Ba6+ {[%emt 0:31:07]} 42. Kf3 $1 {[%emt 0:00:53]} Bd3 {[%emt 0:05:43]} 43. Kf4 {[%emt 0:00:41]} Be4 {[%emt 0:00:17]} 44. Ke5 {[%emt 0:00:50]} Rg1 {[%emt 0:00:00]} 45. Nf3 {[%emt 0:00:00]} Rd1 {[%emt 0:00:00]} (45... Bxf3 $1 $11 46. gxf3 Rd1) 46. Ng5 $1 $14 {[%emt 0:00:00]} Bb1 {[%emt 0:00:00]} 47. Ne6 {[%emt 0:00:00]} h6 {[%emt 0:15:53]} 48. Rf8+ {[%emt 0:00:00]} ({Better is} 48. Rb2 $14) 48... Kh7 $11 {[%emt 0:00:00]} 49. Rf7 {[%emt 0:00:00]} d4 {[%emt 0:00:00]} 50. Rxg7+ {[%emt 0:00:00]} Kh8 {[%emt 0:00:00]} 51. Rd7 {[%emt 0:00:00]} ({Reject} 51. exd4 Re1+ 52. Kd5 Rxe6 $19 (52... Bxa2 53. Rg3 $15)) 51... Rd2 {[%emt 0:00:00]} (51... Bxa2 $11 52. Nxd4 (52. Rxd4 Bxb3 53. Nc5 Bc2 $17) 52... Bxb3) 52. exd4 $14 {[%emt 0:00:00]} Bxa2 {[%emt 0:00:00]} 53. Nc5 {[%emt 0:04:13]} (53. Rd8+ Kh7 $11) 53... Rxg2 {[%emt 0:00:00] [#]} (53... Re2+ $14 54. Kd6 Rxg2) 54. d5 {[%emt 0:01:24]} (54. Ra7 $1 $18 {[%cal Ra7a5] and White stays clearly on top.}) 54... a4 $16 {[%emt 0:00:00]} 55. Nxa4 {[%emt 0:00:55]} (55. bxa4 {is interesting.} b3 56. Rb7 b2 57. d6) 55... Bxb3 {[%emt 0:00:00]} 56. Nc5 {[%emt 0:00:02]} Ba2 {[%emt 0:00:00]} 57. Ne4 $1 {[%emt 0:00:37]} Re2 $2 {[%emt 0:00:00][%mdl 8192]} (57... b3 58. Rb7 b2 59. Rb8+ Kg7 60. d6 $15) (57... Rg7 $14 58. Rd6 Re7+ 59. Kd4 Bb1) 58. Rb7 $18 {[%emt 0:00:26]} Bxd5 {[%emt 0:02:15]} 59. Kxd5 {[%emt 0:00:01]} Kg8 {[%emt 0:00:05]} 60. Rxb4 {[%emt 0:00:32]} Re3 {[%emt 0:00:35]} 61. h4 {[%emt 0:00:32]} Kg7 {[%emt 0:00:02]} 62. h5 {[%emt 0:00:43]} Rh3 {[%emt 0:01:19]} 63. Rb7+ {[%emt 0:00:01]} Kg8 {[%emt 0:00:06]} 64. Ke6 {[%emt 0:00:24]} Re3 {[%emt 0:00:19]} 65. Kf5 {[%emt 0:00:07]} Re1 {[%emt 0:00:11]} 66. Nf6+ {[%emt 0:00:36]} Kf8 {[%emt 0:00:04]} 67. Nd7+ {[%emt 0:00:21]} Kg7 {[%emt 0:00:36]} 68. Ne5+ {[%emt 0:00:11]} Kf8 {[%emt 0:00:15]} 69. Kf6 {[%emt 0:00:10]} Kg8 {[%emt 0:00:03]} 70. Rg7+ {[%emt 0:00:18]} 1-0